fUSD/lending_fUSD_20240822
["ID","MTS","AMOUNT","RATE_DAILY","PERIOD"]
[335561703,1724331046477,-223.92451467,0.00010799,2]
[335561704,1724331046488,-1780.8,0.00010799,2]
[335561705,1724331046498,-500.0,0.00010799,2]
[335561706,1724331046507,-500.0,0.00010799,2]
[335561707,1724331046516,-1780.8,0.00010799,2]
[335561708,1724331046527,-500.0,0.00010799,2]
[335561709,1724331046539,-1780.8,0.00010799,2]
[335561710,1724331046549,-500.0,0.00010799,2]
[335561711,1724331046558,-500.0,0.00010799,2]
[335561712,1724331046569,-1780.8,0.00010799,2]
[335561713,1724331046579,-500.0,0.00010799,2]
[335561714,1724331046590,-1153.54719027,0.00010799,2]
[335561715,1724331046607,-627.25280973,0.00010799,2]
[335561716,1724331046616,-191.44,0.00010799,2]
[335561717,1724331046625,-1780.8,0.00010799,2]
[335561718,1724331046634,-500.0,0.00010799,2]
[335561719,1724331046643,-1781.0,0.00010799,2]
[335561720,1724331046651,-144.38752519,0.00010799,2]
[335561721,1724331060717,227.149,9.899e-05,2]
[335561722,1724331085896,397.97,8.219e-05,2]
[335561725,1724331151515,3306.82,9.863e-05,2]
[335561726,1724331284941,171.08,9.788e-05,2]
[335561727,1724331348966,805.16,9.793e-05,2]
[335561728,1724331363942,250.0,9.781e-05,2]
[335561729,1724331368652,328.0,9.778e-05,2]
[335561730,1724331427140,1000.0,0.00025,60]
[335561731,1724331429637,1000.0,0.00025,60]
[335561732,1724331432091,1000.0,0.00025,60]
[335561733,1724331450403,304.92,9.768e-05,2]
[335561734,1724331484481,224.44,9.76e-05,2]
[335561735,1724331553393,616.0,0.000178,120]
[335561736,1724331553517,154.64,0.000178,120]
[335561737,1724331553901,616.0,0.0001779,120]
[335561738,1724331553931,150.5,0.000178,120]
[335561739,1724331554379,150.5,0.0001779,120]
[335561740,1724331554451,616.0,0.0001778,120]
[335561741,1724331554857,150.5,0.0001778,120]
[335561742,1724331554989,616.0,0.000178,120]
[335561743,1724331555356,150.5,0.000178,120]
[335561744,1724331555470,616.0,0.0001779,120]
[335561745,1724331555832,150.5,0.0001779,120]
[335561746,1724331556060,616.0,0.0001778,120]
[335561747,1724331556339,150.5,0.0001778,120]
[335561748,1724331556531,616.0,0.000178,120]
[335561749,1724331556809,209.61,0.000178,120]
[335561750,1724331557012,616.0,0.0001779,120]
[335561751,1724331557487,616.0,0.000178,120]
[335561752,1724331557960,618.21,0.0001779,120]
[335561754,1724331569840,311.28958999,0.0001183,60]
[335561755,1724331583481,395.22,8.219e-05,2]
[335561756,1724331584632,155.0,0.0001183,60]
[335561757,1724331603170,2896.4760869,0.00025,60]
[335561758,1724331612814,259.40799166,0.00021563,60]
[335561759,1724331614216,1852.42,9.775e-05,2]
[335561760,1724331644593,155.0,0.00011848,60]
[335561761,1724331672829,179.3,0.000178,120]
[335561762,1724331672857,157.32,0.000178,120]
[335561763,1724331672961,172.0,0.000178,120]
[335561764,1724331673328,150.5,0.000178,120]
[335561765,1724331673434,172.0,0.0001779,120]
[335561766,1724331673822,150.5,0.0001779,120]
[335561767,1724331673912,172.0,0.0001778,120]
[335561768,1724331674314,150.5,0.0001778,120]
[335561769,1724331674400,172.0,0.000178,120]
[335561770,1724331674808,150.5,0.000178,120]
[335561771,1724331675260,172.0,0.0001779,120]
[335561772,1724331675288,150.5,0.0001779,120]
[335561773,1724331675780,172.0,0.0001778,120]
[335561774,1724331675808,150.5,0.0001778,120]
[335561775,1724331676272,150.5,0.000178,120]
[335561776,1724331676299,172.0,0.000178,120]
[335561777,1724331676747,150.5,0.0001779,120]
[335561778,1724331676774,172.0,0.0001779,120]
[335561779,1724331677220,172.0,0.000178,120]
[335561780,1724331677253,195.53,0.000178,120]
[335561781,1724331677709,180.19,0.0001779,120]
[335561782,1724331680824,155.0,0.00011848,60]
[335561783,1724331687774,182.44,9.762e-05,2]
[335561784,1724331791814,35738.92677321,9.86e-05,2]
[335561785,1724331799143,500.0,0.00024932,120]
[335561786,1724331815836,155.0,0.00011833,60]
[335561787,1724331816534,155.13555336,9.899e-05,2]
[335561788,1724331825129,155.38216916,9.899e-05,2]
[335561789,1724331863322,487.71814183,9.899e-05,2]
[335561790,1724331864599,330.46251231,9.899e-05,2]
[335561791,1724331903109,2896.4760869,0.00025,60]
[335561792,1724331905419,259.95187794,9.899e-05,2]
[335561793,1724331915405,188.8545039,9.764e-05,2]
[335561794,1724331926526,737.6,9.725e-05,2]
[335561795,1724331952167,156.82,9.75e-05,2]
[335561796,1724331953959,155.0,9.899e-05,2]
[335561797,1724332015841,153.52,7.804e-05,2]
[335561798,1724332021609,1015.57,0.00025,60]
[335561799,1724332047852,155.0,0.00011999,60]
[335561800,1724332065620,224.44,9.716e-05,2]
[335561801,1724332104525,1736.23822515,9.899e-05,2]
[335561802,1724332134910,375.45,8.219e-05,2]
[335561804,1724332190107,182.45,9.709e-05,2]
[335561817,1724332231438,-156.83789179,9.91e-05,2]
[335561818,1724332231447,-180.21,9.914e-05,2]
[335561819,1724332231457,-901.40454354,9.929e-05,2]
[335561820,1724332231500,-3798.3477175,9.929e-05,2]
[335561821,1724332231514,-1881.40812481,9.929e-05,2]
[335561822,1724332231526,-2694.41322589,9.929e-05,2]
[335561823,1724332231535,-402.6611149,9.941e-05,2]
[335561824,1724332231545,-405.96966627,9.943e-05,2]
[335561825,1724332231555,-649.99211963,9.962e-05,2]
[335561826,1724332231565,-300.0,9.987e-05,2]
[335561827,1724332231575,-309.53385729,9.988e-05,2]
[335561828,1724332231584,-1179.42478426,9.988e-05,2]
[335561829,1724332231593,-169.45374111,9.988e-05,2]
[335561830,1724332231602,-57.390419,9.999e-05,2]
[335561831,1724332231615,-345.96317607,9.999e-05,2]
[335561832,1724332231624,-1050.0,0.0001,2]
[335561833,1724332231635,-3712.80081324,0.00010009,2]
[335561834,1724332231644,-298.82691546,0.00010097,2]
[335561835,1724332231654,-155.0,0.00010097,2]
[335561836,1724332231664,-375.45,0.00010461,2]
[335561837,1724332231675,-154.99,0.00010471,2]
[335561838,1724332231684,-1455.41,0.00010471,2]
[335561839,1724332231693,-395.0,0.0001058,2]
[335561840,1724332231707,-273.3,0.0001058,2]
[335561841,1724332231716,-166.98284138,0.0001058,2]
[335561842,1724332231881,-333.00715862,0.0001058,2]
[335561843,1724332231891,-150.0,0.00010676,2]
[335561844,1724332231901,-80.10270815,0.00010677,2]
[335561845,1724332231916,-127.59729185,0.00010677,2]
[335561846,1724332231927,-2285.67614838,0.0001068,2]
[335561847,1724332231936,-2410.04537916,0.0001069,2]
[335561848,1724332231947,-142.90107084,0.0001069,2]
[335561849,1724332231957,-343.71719517,0.0001069,2]
[335561850,1724332231968,-2629.06500109,0.0001069,2]
[335561851,1724332231979,-4000.14950374,0.0001069,2]
[335561852,1724332231988,-44305.5961,0.0001069,2]
[335561853,1724332231998,-9840.0201,0.0001069,2]
[335561854,1724332232008,-395.7761,0.00010698,2]
[335561855,1724332232018,-2025.8084,0.00010698,2]
[335561856,1724332232027,-2047.5944,0.00010698,2]
[335561857,1724332232037,-2273.16488197,0.00010698,2]
[335561875,1724332237581,-419.46262222,9.943e-05,2]
[335561876,1724332237591,-298.82691546,0.00010026,2]
[335561877,1724332237601,-155.0,0.00010097,2]
[335561878,1724332237610,-1241.46041803,0.00010698,2]
[335561879,1724332237620,-168.97367699,0.00010699,2]
[335561880,1724332237629,-152.67384191,0.00010699,2]
[335561881,1724332237638,-203.99650371,0.00010699,2]
[335561882,1724332237648,-179.65493735,0.000107,2]
[335561883,1724332237657,-165.19422617,0.000107,2]
[335561884,1724332237667,-150.0,0.00010767,2]
[335561885,1724332237676,-1923.0,0.00010777,2]
[335561886,1724332237686,-847.23262479,0.00010777,2]
[335561887,1724332237701,-410.76737521,0.00010777,2]
[335561888,1724332237711,-623.0,0.00010777,2]
[335561889,1724332237721,-15.35367118,0.00010777,2]
[335561926,1724332239796,-1528.64632882,0.00010777,2]
[335561927,1724332239806,-447.0,0.00010777,2]
[335561928,1724332239814,-150.0,0.00010777,2]
[335561929,1724332239824,-1138.0,0.00010777,2]
[335561930,1724332239837,-810.0,0.00010777,2]
[335561931,1724332239854,-556.0,0.00010777,2]
[335561932,1724332239863,-1897.0,0.00010777,2]
[335561933,1724332239873,-552.0,0.00010777,2]
[335561934,1724332239882,-150.0,0.00010777,2]
[335561935,1724332239892,-1158.0,0.00010777,2]
[335561936,1724332239901,-248.0,0.00010777,2]
[335561937,1724332239911,-1744.45433803,0.00010777,2]
[335561938,1724332239922,-449.19445688,0.00010777,2]
[335561939,1724332239934,-1125.35120509,0.00010777,2]
[335561940,1724332239943,-1826.36858641,0.00010777,2]
[335561942,1724332240179,-2654.1,0.00010777,2]
[335561979,1724332245452,-363.33122051,0.00010777,2]
[335561980,1724332245566,-34823.20019308,0.00010777,2]
[335561981,1724332245575,-764.0,0.00010777,2]
[335561982,1724332245586,-261.220777,0.00010787,2]
[335561983,1724332245595,-162.945739,0.00010787,2]
[335561984,1724332245605,-519.40627773,0.00010789,2]
[335561985,1724332245614,-500.0,0.00010789,2]
[335561986,1724332245625,-500.0,0.00010789,2]
[335561987,1724332245635,-500.0,0.00010789,2]
[335561988,1724332245646,-500.0,0.00010789,2]
[335561989,1724332245658,-500.0,0.00010789,2]
[335561990,1724332245668,-500.0,0.00010789,2]
[335561991,1724332245678,-500.0,0.00010789,2]
[335561992,1724332245687,-1024.82,0.00010789,2]
[335561993,1724332245700,-502.42312096,0.00010789,2]
[335561994,1724332245711,-500.0,0.00010789,2]
[335561995,1724332245721,-500.0,0.00010789,2]
[335561996,1724332245734,-1194.95,0.00010789,2]
[335561997,1724332245744,-284.29464902,0.00010789,2]
[335561998,1724332245754,-1147.09915827,0.0001079,2]
[335561999,1724332245766,-1345.30384173,0.0001079,2]
[335562000,1724332245776,-3728.0,0.0001079,2]
[335562001,1724332245786,-1674.0,0.0001079,2]
[335562003,1724332245797,-289.0,0.0001079,2]
[335562005,1724332245807,-1205.0,0.0001079,2]
[335562007,1724332245817,-21779.0,0.0001079,2]
[335562010,1724332245828,-272.0,0.0001079,2]
[335562012,1724332245838,-2920.3897666,0.00010792,2]
[335562013,1724332245847,-4018.9153143,0.00010793,2]
[335562015,1724332245856,-160.05579524,0.00010796,2]
[335562017,1724332245866,-471.86803916,0.00010797,2]
[335562019,1724332245875,-5086.42,0.00010797,2]
[335562021,1724332245884,-901.43,0.00010797,2]
[335562023,1724332245895,-901.43,0.00010797,2]
[335562025,1724332245904,-500.0,0.00010797,2]
[335562027,1724332245913,-500.0,0.00010797,2]
[335562028,1724332245922,-505.19585159,0.00010797,2]
[335562030,1724332245931,-500.0,0.00010797,2]
[335562032,1724332245940,-500.0,0.00010797,2]
[335562034,1724332245949,-500.0,0.00010797,2]
[335562036,1724332245959,-500.0,0.00010797,2]
[335562038,1724332245968,-500.0,0.00010797,2]
[335562040,1724332245977,-577.39079667,0.00010797,2]
[335562042,1724332245987,-194674.67380212,0.00010798,2]
[335562045,1724332245999,-142156.34491636,0.00010798,2]
[335562047,1724332246009,-456.69963619,0.00010798,2]
[335562048,1724332246018,-500.0,0.00010798,2]
[335562050,1724332246027,-500.0,0.00010798,2]
[335562052,1724332246036,-500.0,0.00010798,2]
[335562054,1724332246046,-500.0,0.00010798,2]
[335562056,1724332246055,-500.0,0.00010798,2]
[335562058,1724332246064,-500.0,0.00010798,2]
[335562060,1724332246074,-500.0,0.00010798,2]
[335562062,1724332246083,-500.0,0.00010798,2]
[335562064,1724332246100,-500.0,0.00010798,2]
[335562066,1724332246111,-500.0,0.00010798,2]
[335562082,1724332246259,-500.0,0.00010798,2]
[335562084,1724332246269,-500.0,0.00010798,2]
[335562086,1724332246278,-261.220777,0.00010798,2]
[335562088,1724332246287,-192.2724948,0.00010798,2]
[335562090,1724332246296,-5086.42,0.00010798,2]
[335562092,1724332246305,-5086.42,0.00010798,2]
[335562094,1724332246315,-5086.42,0.00010798,2]
[335562096,1724332246324,-1024.82,0.00010798,2]
[335562098,1724332246335,-1024.82,0.00010798,2]
[335562100,1724332246344,-1024.82,0.00010798,2]
[335562101,1724332246353,-1024.82,0.00010798,2]
[335562102,1724332246362,-500.0,0.00010798,2]
[335562103,1724332246371,-500.0,0.00010798,2]
[335562104,1724332246380,-304.68293822,0.00010798,2]
[335562105,1724332246390,-901.43,0.00010798,2]
[335562106,1724332246399,-901.43,0.00010798,2]
[335562108,1724332246408,-901.43,0.00010798,2]
[335562109,1724332246418,-500.0,0.00010798,2]
[335562111,1724332246427,-500.0,0.00010798,2]
[335562113,1724332246437,-500.0,0.00010798,2]
[335562115,1724332246446,-123.32882833,0.00010798,2]
[335562116,1724332246459,-1071.62117167,0.00010798,2]
[335562117,1724332246468,-1194.95,0.00010798,2]
[335562118,1724332246478,-1194.95,0.00010798,2]
[335562119,1724332246487,-1194.95,0.00010798,2]
[335562120,1724332246497,-500.0,0.00010798,2]
[335562121,1724332246507,-500.0,0.00010798,2]
[335562122,1724332246515,-500.0,0.00010798,2]
[335562123,1724332246525,-500.0,0.00010798,2]
[335562124,1724332246534,-500.0,0.00010798,2]
[335562125,1724332246543,-155.84971816,0.00010798,2]
[335562126,1724332246553,-504.0,0.00010799,2]
[335562127,1724332246563,-355.61247481,0.00010799,2]
[335562128,1724332246572,-500.0,0.00010799,2]
[335562129,1724332246582,-500.0,0.00010799,2]
[335562130,1724332246591,-500.0,0.00010799,2]
[335562131,1724332246600,-278.74799016,0.00010799,2]
[335562132,1724332246609,-500.0,0.00010799,2]
[335562133,1724332246620,-500.0,0.00010799,2]
[335562134,1724332246630,-575.52,0.00010799,2]
[335562135,1724332246640,-500.0,0.00010799,2]
[335562136,1724332246651,-500.0,0.00010799,2]
[335562137,1724332246662,-434.43922118,0.00010799,2]
[335562138,1724332246671,-500.0,0.00010799,2]
[335562139,1724332246681,-500.0,0.00010799,2]
[335562140,1724332246690,-500.0,0.00010799,2]
[335562141,1724332246702,-500.0,0.00010799,2]
[335562142,1724332246712,-500.0,0.00010799,2]
[335562143,1724332246721,-500.0,0.00010799,2]
[335562144,1724332246730,-500.0,0.00010799,2]
[335562145,1724332246738,-500.0,0.00010799,2]
[335562146,1724332246747,-500.0,0.00010799,2]
[335562147,1724332246757,-500.0,0.00010799,2]
[335562148,1724332246768,-500.0,0.00010799,2]
[335562149,1724332246778,-500.0,0.00010799,2]
[335562150,1724332246789,-500.0,0.00010799,2]
[335562151,1724332246799,-500.0,0.00010799,2]
[335562152,1724332246809,-500.0,0.00010799,2]
[335562153,1724332246819,-500.0,0.00010799,2]
[335562154,1724332246828,-500.0,0.00010799,2]
[335562155,1724332246839,-500.0,0.00010799,2]
[335562156,1724332246848,-523.99,0.00010799,2]
[335562157,1724332246857,-500.0,0.00010799,2]
[335562158,1724332246867,-523.99,0.00010799,2]
[335562159,1724332246877,-500.0,0.00010799,2]
[335562160,1724332246887,-523.99,0.00010799,2]
[335562161,1724332246898,-500.0,0.00010799,2]
[335562162,1724332246909,-500.0,0.00010799,2]
[335562163,1724332246918,-500.0,0.00010799,2]
[335562164,1724332246928,-523.99,0.00010799,2]
[335562165,1724332246938,-500.0,0.00010799,2]
[335562166,1724332246948,-523.99,0.00010799,2]
[335562167,1724332246959,-500.0,0.00010799,2]
[335562168,1724332246970,-500.0,0.00010799,2]
[335562169,1724332246981,-523.99,0.00010799,2]
[335562170,1724332246991,-500.0,0.00010799,2]
[335562171,1724332247002,-500.0,0.00010799,2]
[335562172,1724332247013,-500.0,0.00010799,2]
[335562173,1724332247023,-523.99,0.00010799,2]
[335562174,1724332247033,-393.42,0.00010799,2]
[335562175,1724332247042,-500.0,0.00010799,2]
[335562176,1724332247051,-523.99,0.00010799,2]
[335562177,1724332247061,-500.0,0.00010799,2]
[335562178,1724332247071,-523.99,0.00010799,2]
[335562179,1724332247081,-500.0,0.00010799,2]
[335562180,1724332247092,-523.99,0.00010799,2]
[335562181,1724332247101,-500.0,0.00010799,2]
[335562182,1724332247111,-523.99,0.00010799,2]
[335562183,1724332247120,-500.0,0.00010799,2]
[335562184,1724332247130,-500.0,0.00010799,2]
[335562185,1724332247139,-500.0,0.00010799,2]
[335562186,1724332247148,-500.0,0.00010799,2]
[335562187,1724332247158,-500.0,0.00010799,2]
[335562188,1724332247167,-500.0,0.00010799,2]
[335562189,1724332247176,-500.0,0.00010799,2]
[335562190,1724332247185,-500.0,0.00010799,2]
[335562191,1724332247195,-500.0,0.00010799,2]
[335562192,1724332247204,-500.0,0.00010799,2]
[335562193,1724332247213,-500.0,0.00010799,2]
[335562194,1724332247223,-496.68305558,0.00010799,2]
[335562195,1724332247242,-3.31694442,0.00010799,2]
[335562196,1724332247252,-500.0,0.00010799,2]
[335562197,1724332247261,-500.0,0.00010799,2]
[335562198,1724332247271,-500.0,0.00010799,2]
[335562199,1724332247280,-500.0,0.00010799,2]
[335562200,1724332247289,-500.0,0.00010799,2]
[335562201,1724332247298,-500.0,0.00010799,2]
[335562202,1724332247307,-500.0,0.00010799,2]
[335562203,1724332247316,-500.0,0.00010799,2]
[335562204,1724332247326,-500.0,0.00010799,2]
[335562205,1724332247335,-500.0,0.00010799,2]
[335562206,1724332247344,-617.43076818,0.00010799,2]
[335562207,1724332247354,-500.0,0.00010799,2]
[335562208,1724332247364,-500.0,0.00010799,2]
[335562209,1724332247373,-500.0,0.00010799,2]
[335562210,1724332247382,-500.0,0.00010799,2]
[335562211,1724332247392,-500.0,0.00010799,2]
[335562212,1724332247402,-500.0,0.00010799,2]
[335562213,1724332247411,-500.0,0.00010799,2]
[335562214,1724332247422,-500.0,0.00010799,2]
[335562215,1724332247432,-937.6,0.00010799,2]
[335562216,1724332247443,-937.6,0.00010799,2]
[335562217,1724332247453,-500.0,0.00010799,2]
[335562218,1724332247463,-937.6,0.00010799,2]
[335562219,1724332247472,-500.0,0.00010799,2]
[335562220,1724332247481,-937.6,0.00010799,2]
[335562221,1724332247490,-500.0,0.00010799,2]
[335562222,1724332247499,-937.6,0.00010799,2]
[335562223,1724332247508,-628.64,0.00010799,2]
[335562224,1724332247517,-937.6,0.00010799,2]
[335562225,1724332247527,-628.64,0.00010799,2]
[335562226,1724332247536,-937.6,0.00010799,2]
[335562227,1724332247546,-628.64,0.00010799,2]
[335562228,1724332247555,-937.6,0.00010799,2]
[335562229,1724332247564,-937.6,0.00010799,2]
[335562230,1724332247573,-628.64,0.00010799,2]
[335562231,1724332247582,-937.6,0.00010799,2]
[335562232,1724332247593,-628.64,0.00010799,2]
[335562233,1724332247602,-72.87023753,0.00010799,2]
[335562265,1724332348858,155.0,0.00013089,60]
[335562266,1724332364710,200.0,9.884e-05,2]
[335562289,1724332396851,155.0,0.00013089,60]
[335562290,1724332401663,133.28996519,9.874e-05,2]
[335562291,1724332401686,116.71003481,9.874e-05,2]
[335562292,1724332407109,409.92,9.871e-05,2]
[335562294,1724332446848,155.0,0.0001198,60]
[335562296,1724332496947,155.0,0.00011965,60]
[335562298,1724332537006,322.04,9.854e-05,2]
[335562299,1724332590166,790.99220407,0.00027,120]
[335562329,1724332616890,155.0,0.00011944,60]
[335562330,1724332667057,298.82691546,9.899e-05,2]
[335562333,1724332734138,371.57,8.219e-05,2]
[335562334,1724332747315,35738.92677321,9.86e-05,2]
[335562335,1724332779487,183999.0,0.00027,120]
[335562336,1724332784722,327.02,9.842e-05,2]
[335562340,1724332867891,155.0,0.00011929,60]
[335562341,1724332929480,672.06,9.845e-05,2]
[335562342,1724332947880,228.77402808,0.00027,120]
[335562344,1724332991902,241.1625979,9.899e-05,2]
[335562350,1724333062848,161.02,9.838e-05,2]
[335562354,1724333126790,153.52,7.858e-05,2]
[335562356,1724333159351,620.0,0.00025,60]
[335562359,1724333176894,161.03128308,9.525e-05,60]
[335562360,1724333188598,206.02448722,9.899e-05,2]
[335562362,1724333251180,368.87,8.219e-05,2]
[335562367,1724333285182,288.00127867,0.00025,60]
[335562368,1724333297335,973.00371224,0.00025,120]
[335562372,1724333321660,316.17343472,0.0002509,120]
[335562373,1724333325378,1029.22532978,0.00027,120]
[335562374,1724333325948,1061.72839641,0.00023835,120]
[335562375,1724333325976,1009.62184784,0.00015,120]
[335562376,1724333326768,172.98,9.824e-05,2]
[335562397,1724333431786,-330.46251231,9.91e-05,2]
[335562398,1724333431796,-87.35302074,9.929e-05,2]
[335562399,1724333431846,-120.83660947,9.929e-05,2]
[335562400,1724333431855,-325.62192777,0.0001,2]
[335562401,1724333432017,-175.60574517,0.0001,2]
[335562403,1724333432027,-155.0,0.00010026,2]
[335562405,1724333432035,-129.46425483,0.00010026,2]
[335562407,1724333432046,-213.57543013,0.00010026,2]
[335562409,1724333432056,-402.6611149,0.00010097,2]
[335562411,1724333432068,-402.6611149,0.00010097,2]
[335562413,1724333432077,-75.99261516,0.000101,2]
[335562554,1724333437698,-336.60725548,0.000101,2]
[335562555,1724333437709,-368.87,0.00010468,2]
[335562556,1724333437720,-157.70222295,0.00010505,2]
[335562557,1724333437730,-2552.94645,0.0001069,2]
[335562558,1724333437741,-179.99,0.00010699,2]
[335562559,1724333437760,-7150.6506,0.00010699,2]
[335562560,1724333437769,-4064.0211,0.00010699,2]
[335562561,1724333437779,-150.0,0.00010699,2]
[335562562,1724333437788,-166.85837305,0.000107,2]
[335562563,1724333437797,-203.99650371,0.000107,2]
[335562564,1724333437807,-179.65493734,0.000107,2]
[335562565,1724333437817,-2552.94645,0.000107,2]
[335562566,1724333437826,-591.01663499,0.000107,2]
[335562567,1724333437834,-10511.377857,0.00010713,2]
[335562568,1724333437846,-339.93073313,0.00010713,2]
[335562569,1724333437855,-237.9444754,0.0001074,2]
[335562570,1724333437866,-1873.76763892,0.0001074,2]
[335562571,1724333437877,-362.23819809,0.0001074,2]
[335562572,1724333437898,-78.99613759,0.0001074,2]
[335562573,1724333437907,-1032.14784548,0.0001074,2]
[335562574,1724333437919,-1051.18549452,0.0001074,2]
[335562575,1724333437928,-2552.94645,0.0001078,2]
[335562576,1724333437938,-2753.2194634,0.00010792,2]
[335562577,1724333437947,-7572.39073406,0.00010792,2]
[335562578,1724333437968,-4979.55187661,0.00010792,2]
[335562579,1724333437979,-6199.65571103,0.00010792,2]
[335562580,1724333437989,-2411.5337039,0.00010792,2]
[335562581,1724333438002,-856.8,0.00010792,2]
[335562582,1724333438011,-500.0,0.00010797,2]
[335562583,1724333438020,-500.0,0.00010797,2]
[335562584,1724333438030,-500.0,0.00010797,2]
[335562585,1724333438039,-453.43905412,0.00010797,2]
[335562590,1724333439733,-46.56094588,0.00010797,2]
[335562591,1724333439743,-153.987602,0.00010797,2]
[335562592,1724333439758,-392.51898306,0.00010798,2]
[335562593,1724333439769,-107.48101694,0.00010798,2]
[335562594,1724333439778,-457.4254499,0.00010798,2]
[335562595,1724333439787,-339.83370707,0.00010798,2]
[335562596,1724333439849,-160.16629293,0.00010798,2]
[335562597,1724333439859,-264.83370707,0.00010798,2]
[335562598,1724333439968,-235.16629293,0.00010798,2]
[335562599,1724333439979,-500.0,0.00010798,2]
[335562600,1724333439988,-864.72976247,0.00010799,2]
[335562601,1724333440000,-628.64,0.00010799,2]
[335562602,1724333440010,-628.64,0.00010799,2]
[335562603,1724333440019,-628.64,0.00010799,2]
[335562604,1724333440028,-628.64,0.00010799,2]
[335562605,1724333440039,-500.0,0.00010799,2]
[335562606,1724333440048,-628.64,0.00010799,2]
[335562607,1724333440064,-500.0,0.00010799,2]
[335562608,1724333440073,-628.64,0.00010799,2]
[335562609,1724333440082,-500.0,0.00010799,2]
[335562610,1724333440091,-1354.11,0.00010799,2]
[335562611,1724333440102,-1354.11,0.00010799,2]
[335562612,1724333440111,-1354.11,0.00010799,2]
[335562613,1724333440120,-1354.11,0.00010799,2]
[335562614,1724333440129,-1354.11,0.00010799,2]
[335562615,1724333440141,-1354.11,0.00010799,2]
[335562616,1724333440151,-1354.11,0.00010799,2]
[335562618,1724333440160,-1354.11,0.00010799,2]
[335562620,1724333440169,-1354.11,0.00010799,2]
[335562622,1724333440179,-1354.11,0.00010799,2]
[335562624,1724333440188,-1354.11,0.00010799,2]
[335562626,1724333440197,-500.0,0.00010799,2]
[335562628,1724333440206,-500.0,0.00010799,2]
[335562630,1724333440215,-500.0,0.00010799,2]
[335562632,1724333440224,-500.0,0.00010799,2]
[335562634,1724333440233,-500.0,0.00010799,2]
[335562636,1724333440242,-500.0,0.00010799,2]
[335562637,1724333440253,-500.0,0.00010799,2]
[335562639,1724333440262,-500.0,0.00010799,2]
[335562641,1724333440271,-500.0,0.00010799,2]
[335562643,1724333440280,-500.0,0.00010799,2]
[335562645,1724333440291,-500.0,0.00010799,2]
[335562647,1724333440301,-500.0,0.00010799,2]
[335562649,1724333440310,-500.0,0.00010799,2]
[335562650,1724333440319,-500.0,0.00010799,2]
[335562651,1724333440328,-500.0,0.00010799,2]
[335562652,1724333440337,-500.0,0.00010799,2]
[335562653,1724333440347,-500.0,0.00010799,2]
[335562654,1724333440357,-500.0,0.00010799,2]
[335562655,1724333440366,-500.0,0.00010799,2]
[335562656,1724333440375,-500.0,0.00010799,2]
[335562657,1724333440384,-500.0,0.00010799,2]
[335562658,1724333440393,-500.0,0.00010799,2]
[335562659,1724333440402,-500.0,0.00010799,2]
[335562660,1724333440411,-306.67185377,0.00010799,2]
[335562661,1724333440420,-500.0,0.00010799,2]
[335562662,1724333440429,-500.0,0.00010799,2]
[335562663,1724333440438,-500.0,0.00010799,2]
[335562664,1724333440447,-500.0,0.00010799,2]